Cogmind - Beta 13 @@@ ROGUE MODE // 2024.04.05 @ 20:38:42 Player: xXK1NG_0F_C0GM1NDXx Result: Destroyed by G-47 Trooper with Particle Gun Performance ------------- Evolutions (2) 1000 Regions Visited (4) 800 Robots Destroyed (49) 245 Value Destroyed (951) 951 Prototype IDs (2) 40 Alien Tech Used (0) 0 Bonus (11) 11 TOTAL SCORE: 3047 Bonus ------- High Alert Combat Kills 11 Cogmind --------- Core Integrity 0/550 Matter 136/300 Energy 99/100 System Corruption 12% Temperature Cool (9) Movement Core (50) Location -8/Materials Parts ------- > --- POWER (1) -------- (None) > --- PROPULSION (2) --- (None) > --- UTILITY (3) ------ (None) > --- WEAPON (5) ------- (None) > --- INVENTORY (5) ---- (None) Peak State ------------ > --- POWER ------------ Ion Engine > --- PROPULSION ------- Flight Unit > --- UTILITY ---------- Experimental Sensor Array > --- WEAPON ----------- Beam Cannon Beam Cannon Beam Cannon Beam Cannon > --- INVENTORY -------- (None) [Rating: 15] Favorites ----------- Power Light Nuclear Core Engine Ion Engine Power Core Light Nuclear Core Propulsion Light Treads Treads Light Treads Flight Unit Flight Unit Utility Small Battery Device Experimental Sensor Array Storage Small Battery Hackware Hacking Suite Protection Utility Shielding Weapon Beam Cannon Energy Gun EM Pulse Gun Energy Cannon Beam Cannon Ballistic Gun Assault Rifle Launcher Rocket Launcher Special Melee Weapon Datajack Build | -11 -10 -10 -9 -8 ------- Run | Yrd Mat Min Mat Mat Slots Evolved 4 | . . . 2 2 Power . | . . . . . Propulsion . | . . . . . Utility 1 | . . . . 1 Weapon 3 | . . . 2 1 Parts Attached 33 | 5 5 4 13 6 Power 4 | . 1 1 2 . Engine 3 | . 1 . 2 . Core 1 | . . 1 . . Reactor . | . . . . . Propulsion 7 | 2 . . 3 2 Treads 3 | 2 . . . 1 Leg . | . . . . . Wheel . | . . . . . Hover . | . . . . . Flight 4 | . . . 3 1 Utility 7 | 1 1 1 3 1 Device 2 | . . 1 1 . Storage 3 | 1 1 . 1 . Processor . | . . . . . Hackware 1 | . . . . 1 Protection 1 | . . . 1 . Artifact . | . . . . . Weapon 15 | 2 3 2 5 3 Energy Gun 3 | 1 . . . 2 Energy Cannon 7 | . 2 2 3 . Ballistic Gun 1 | 1 . . . . Ballistic Cannon . | . . . . . Launcher 3 | . 1 . 2 . Special Weapon . | . . . . . Impact Weapon . | . . . . . Slashing Weapon . | . . . . . Piercing Weapon . | . . . . . Special Melee Weapon 1 | . . . . 1 Unidentified Prototypes 2 | . . 1 1 . Corrupted Parts 2 | . . . . 2 System Corruption 12 | . . . . 12 Parts Lost 22 | . 1 6 6 9 Power 4 | . 1 1 1 1 Propulsion 6 | . . 2 2 2 Utility 4 | . . 1 1 2 Weapon 8 | . . 2 2 4 Highest Loss Streak 9 | . 1 6 4 9 To Critical Strikes . | . . . . . Average Slot Usage (%) 71 | . 88 83 44 50 Engine 4 | . 7 . 6 7 Core 3 | . . 8 . . Treads 15 | . 28 21 . . Device 2 | . . 2 5 . Storage 15 | . 23 22 . 8 Protection 1 | . . . 3 9 Energy Gun 1 | . 5 . . . Energy Cannon 19 | . 14 27 19 . Launcher 5 | . 7 . 6 15 Naked Turns 17 | . . . 15 2 Heaviest Build 18 | 9 15 17 18 18 Greatest Support 40 | 40 40 40 8 20 Greatest Overweight (x) 5 | . . 5 5 5 Average Overweight (x) . | . . . 1 3 Largest Inventory Capacity 8 | 8 8 8 5 5 Average Capacity 6 | 7 8 7 5 5 Most Carried 8 | 5 8 8 4 1 Average Carried 3 | 2 5 6 . . Final Capacity 8 | 8 8 5 5 5 Final Carried 7 | 3 7 3 . . Class Distribution -------------------- 93% | Mutant 6% | Skirmisher Dominant Class ---------------- Mutant | -10/Materials Mutant | -10/Mines Mutant | -9/Materials Mutant | -8/Materials Resources | -11 -10 -10 -9 -8 ----------- Run | Yrd Mat Min Mat Mat Matter Collected 707 | 215 168 121 80 123 Remotely . | . . . . . Salvage Created 1160 | . 576 270 222 92 Parts 80 | . 35 16 16 13 Haulers Intercepted 1 | . . . . 1 Recyclers Shooed 3 | . 3 . . . Parts Field Recycled . | . . . . . Retrieved Matter . | . . . . . Parts Self-Destructed . | . . . . . Prevented . | . . . . . Kills | -11 -10 -10 -9 -8 ------- Run | Yrd Mat Min Mat Mat Combat Hostiles Destroyed 29 | . 11 6 12 . Guns 3 | . 3 . . . Cannons 16 | . 3 6 7 . AOE 10 | . 5 . 5 . Classes Destroyed 9 | . 5 . 1 3 Worker 3 | . 2 . 1 . Builder 3 | . . . . 3 Hauler 1 | . . . . 1 Recycler 6 | . 5 1 . . Operator 1 | . . . . 1 Watcher 6 | . 2 . 2 2 Swarmer 16 | . 6 2 8 . Grunt 12 | . 5 4 3 . Sentry 1 | . . . 1 . Best Kill Streak 8 | . 8 3 8 6 Combat Bots Only 5 | . 5 2 5 . Max Kills in Single Turn 2 | . 2 1 2 2 Gunslinging . | . . . . . Exploded 1 | . 1 . 1 . Melee . | . . . . . Uniques/NPCs Destroyed . | . . . . . Combat | -11 -10 -10 -9 -8 -------- Run | Yrd Mat Min Mat Mat Hostile Shots Fired 317 | . 36 61 80 140 Missed 90 | . 11 9 25 45 Damage Taken 2620 | . 225 689 604 1102 Core 1184 | . 28 204 389 563 Absorbed by Shields . | . . . . . Redirected to Shielding 17 | . . . . 17 Core Remaining (%) 36 | 100 . 7 2 . Volleys Fired 83 | . 27 27 23 6 Largest 4 | . 2 2 4 2 Hottest 240 | . 120 120 240 66 Shots Fired 151 | . 42 52 48 9 Gun 17 | . 14 . . 3 Cannon 106 | . 20 52 34 . Launcher 28 | . 8 . 14 6 Special . | . . . . . Kinetic . | . . . . . Thermal 109 | . 20 52 34 3 Explosive 28 | . 8 . 14 6 Electromagnetic 14 | . 14 . . . Robot Hit Streak 8 | . 8 6 3 1 Robot Miss Streak 6 | . 5 6 3 1 Penetration Max . | . . . . . Secondary Targets . | . . . . . Shots Hit Robots 61 | . 22 21 11 7 Core Hits 73 | . 27 10 23 13 Critical Kills . | . . . . . Critical Parts Destroyed . | . . . . . Critical Strikes . | . . . . . Melee Attacks 5 | . . . . 5 Impact . | . . . . . Slashing . | . . . . . Piercing . | . . . . . Sneak Attacks 5 | . . . . 5 Combat Hostiles . | . . . . . Follow-up Attacks . | . . . . . Damage Inflicted 2493 | . 890 427 723 453 Guns 93 | . 76 . . 17 Cannons 896 | . 246 419 231 . Explosions 1496 | . 568 . 492 436 Melee . | . . . . . Ramming 8 | . . 8 . . Kinetic . | . . . . . Thermal 953 | . 246 419 271 17 Explosive 1316 | . 568 . 452 296 Electromagnetic 216 | . 76 . . 140 Impact . | . . . . . Slashing . | . . . . . Piercing . | . . . . . Highest Corruption 12 | . 2 2 . 12 Average Corruption 2 | . 2 2 . 11 Corruption Purged . | . . . . . Corruption Blocked . | . . . . . Effects 15 | . 3 10 . 2 Message Errors 2 | . . 2 . . Matter Fused 5 | . 2 3 . . Heat Flow Errors 2 | . 1 1 . . Parts Rejected 2 | . . . . 2 Data Loss (minor) 1 | . . 1 . . Data Loss (major) 1 | . . 1 . . Misfires 1 | . . 1 . . Alerts 1 | . . 1 . . Overload Shots . | . . . . . Overflow Damage 14 | . 5 . . 9 Projectiles . | . . . . . Explosions 14 | . 5 . . 9 Melee . | . . . . . Knockbacks . | . . . . . Impact . | . . . . . Kinetic . | . . . . . Secondary . | . . . . . Self-Inflicted Damage 2 | . . 2 . . Shots . | . . . . . Rammed 6 | . . 6 . . Targets Rammed 6 | . . 6 . . Kicked . | . . . . . Crushed . | . . . . . Highest Temperature 807 | . 226 741 807 45 Average Temperature 215 | . 66 267 295 27 Received Heat Transfer 648 | . 51 267 42 288 Effects 49 | . . 29 20 . Shutdowns 8 | . . 5 3 . Energy Bleed 6 | . . 5 1 . Interference 4 | . . 2 2 . Matter Decay 3 | . . 2 1 . Short Circuit 4 | . . 1 3 . Damage (minor) 4 | . . . 4 . Damage (major) 15 | . . 11 4 . Damage (core) 5 | . . 3 2 . Siege Activations . | . . . . . Robots Corrupted . | . . . . . Combat Hostiles . | . . . . . Parts Fried 1 | . . . . 1 Impact Corruptions . | . . . . . Robots Melted . | . . . . . Combat Hostiles . | . . . . . Parts Melted 2 | . . 2 . . Heat Transferred 1974 | . 518 888 531 37 Parts Sabotaged . | . . . . . Parts Stolen . | . . . . . Parts Stripped . | . . . . . Power Chain Reactions . | . . . . . Alert | -11 -10 -10 -9 -8 ------- Run | Yrd Mat Min Mat Mat Peak Influence 452 | . 335 250 452 262 Initial 130 | . . 130 15 105 Average 158 | . 203 131 178 173 Maximum Alert Level 2 | . 1 1 2 1 Low Security (%) 64 | 100 41 72 70 62 Level 1 29 | . 58 27 7 37 Level 2 5 | . . . 22 . Level 3 . | . . . . . Level 4 . | . . . . . Level 5 . | . . . . . High Security . | . . . . . Max Security . | . . . . . Squads Dispatched 1 | . 1 . . . Investigation . | . . . . . Extermination . | . . . . . Reinforcement 1 | . 1 . . . Assault . | . . . . . Garrison . | . . . . . Intercept . | . . . . . Searches Triggered . | . . . . . Construction Impeded . | . . . . . Haulers Reinforced . | . . . . . Active Scanning Responses . | . . . . . Cargo Convoy Interrupts . | . . . . . Stealth | -11 -10 -10 -9 -8 --------- Run | Yrd Mat Min Mat Mat Distress Signals 7 | . 3 . 1 3 Communications Jammed . | . . . . . Distress Signals . | . . . . . Times Spotted 54 | . 15 7 19 13 Peak Tracking Total 10 | . 5 3 5 10 Tactical Retreats 3 | . . 1 2 . Traps | -11 -10 -10 -9 -8 ------- Run | Yrd Mat Min Mat Mat Traps Triggered 2 | . 1 . 1 . Indirectly . | . . . . . Trap Hack Attempts . | . . . . . Triggered . | . . . . . Disarmed . | . . . . . Reprogrammed . | . . . . . Reused . | . . . . . Traps Extracted . | . . . . . Installed . | . . . . . Triggered . | . . . . . Machines | -11 -10 -10 -9 -8 ---------- Run | Yrd Mat Min Mat Mat Machines Disabled 10 | . 1 . 4 5 Max in Single Turn 3 | . 1 . 3 2 Machines Repaired . | . . . . . Machines Dismantled . | . . . . . Machines Sabotaged . | . . . . . Overloaded Fab Kills . | . . . . . Hacking | -11 -10 -10 -9 -8 --------- Run | Yrd Mat Min Mat Mat Machines Accessed . | . . . . . Terminals . | . . . . . Fabricators . | . . . . . Repair Stations . | . . . . . Recycling Units . | . . . . . Scanalyzers . | . . . . . Garrison Access . | . . . . . Total Hacks . | . . . . . Successful . | . . . . . Failed . | . . . . . Catastrophic . | . . . . . Database Lockouts . | . . . . . Manual . | . . . . . Terminals . | . . . . . Fabricators . | . . . . . Repair Stations . | . . . . . Recycling Units . | . . . . . Scanalyzers . | . . . . . Garrison Access . | . . . . . Terminal Hacks . | . . . . . Fabricator Hacks . | . . . . . Repair Station Hacks . | . . . . . Recycling Unit Hacks . | . . . . . Scanalyzer . | . . . . . Garrison Access Hacks . | . . . . . Unauthorized Hacks . | . . . . . Terminals . | . . . . . Fabricators . | . . . . . Repair Stations . | . . . . . Recycling Units . | . . . . . Scanalyzers . | . . . . . Garrison Access . | . . . . . Data Cores Recovered 1 | . . . . 1 Used . | . . . . . Hacking Detections . | . . . . . Full Trace Events . | . . . . . Feedback Events . | . . . . . Feedback Blocked . | . . . . . Robot Schematics Acquired . | . . . . . Robots Built . | . . . . . Authchips . | . . . . . Time . | . . . . . Total Robot Build Rating . | . . . . . Part Schematics Acquired . | . . . . . Parts Built . | . . . . . Authchips . | . . . . . Time . | . . . . . Total Part Build Rating . | . . . . . Parts Repaired . | . . . . . Time . | . . . . . Parts Recycled . | . . . . . Recycled Matter . | . . . . . Retrieved Matter . | . . . . . Retrieved Components . | . . . . . Parts Scanalyzed . | . . . . . Part Schematics Acquired . | . . . . . Parts Damaged . | . . . . . Bothacking | -11 -10 -10 -9 -8 ------------ Run | Yrd Mat Min Mat Mat Used RIF Installer . | . . . . . Robots Hacked 2 | . . . . 2 Non-combat 2 | . . . . 2 Combat . | . . . . . Robot Hacks Applied 4 | . . . . 4 no_distress 4 | . . . . 4 Relay Couplers Released . | . . . . . Fabnet Peak Effective % . | . . . . . Robots Rewired . | . . . . . Allies Hacked . | . . . . . Hacks Repelled . | . . . . . Allies | -11 -10 -10 -9 -8 -------- Run | Yrd Mat Min Mat Mat Total Allies . | . . . . . Largest Group . | . . . . . Highest-Rated Group . | . . . . . Highest-Rated Ally . | . . . . . Total Orders . | . . . . . Ally Attacks . | . . . . . Total Damage . | . . . . . Kills . | . . . . . Allies Corrupted . | . . . . . Allies Melted . | . . . . . Intel | -11 -10 -10 -9 -8 ------- Run | Yrd Mat Min Mat Mat Robot Analysis Total . | . . . . . Derelict Logs Recovered . | . . . . . Drone Launches . | . . . . . Drone Recoveries . | . . . . . Exploration | -11 -10 -10 -9 -8 ------------- Run | Yrd Mat Min Mat Mat Turns Passed 1782 | 67 390 703 414 208 Spaces Moved 957 | 49 187 382 266 73 Core 318 | 21 . 90 137 70 Treads 510 | 28 187 292 . 3 Legs . | . . . . . Wheels . | . . . . . Hover . | . . . . . Flight 129 | . . . 129 . Fastest Speed 37 | 50 160 150 37 50 Average Speed 152 | 112 160 158 122 235 Slowest Speed 300 | 160 160 300 300 300 Overloaded Moves . | . . . . . Propulsion Burnouts . | . . . . . Robots Hopped 1 | . . . 1 . Cave-ins Triggered . | . . . . . Exploration Rate (%) 29 | 4 41 71 19 10 Regions Visited 4 Branch Regions 1 Pre-discovered Areas . | . . . . . Known Exits Taken . | . . . . . Unknown Exits Taken 4 | 1 1 1 1 . Scrap Searched 2 | . . 2 . . Spaces Dug 9 | . . . . 9 Terrain Destroyed 92 | . 22 . 60 10 Melee . | . . . . . Projectile . | . . . . . AOE 92 | . 22 . 60 10 Terrain Rammed . | . . . . . Walls Destroyed . | . . . . . Machines Disabled . | . . . . . Actions | -11 -10 -10 -9 -8 --------- Run | Yrd Mat Min Mat Mat Total 1138 | 61 240 421 318 98 Wait . | . . . . . Move 951 | 48 186 381 263 73 Hop 1 | . . . 1 . Pick Up 42 | 8 14 2 11 7 Fast Attach . | . . . . . Attach 33 | 5 5 4 13 6 Detach 1 | . . . 1 . Swap . | . . . . . Drop 16 | . 8 1 6 1 Fire 83 | . 27 27 23 6 Melee 5 | . . . . 5 Ram 5 | . . 5 . . Kick . | . . . . . Crush 1 | . . 1 . . Escape Stasis . | . . . . . Rewire . | . . . . . Trap . | . . . . . Miscellaneous . | . . . . . Route ------- -11/Scrapyard -10/Materials -10/Mines -9/Materials -8/Materials History --------- Turn | Location | Event 7 | -11/Scrapyard | Discovered new exit (range 15) 68 | -11/Scrapyard | Entered Materials 217 | -10/Materials | Discovered new exit (range 11) 318 | -10/Materials | Build established: Mutant 458 | -10/Materials | Entered Mines 637 | -10/Mines | Found a damaged Exp. Sensor Array with a note attached 640 | -10/Mines | Found Prototype Device 778 | -10/Mines | Discovered new exit (range 5) 1010 | -10/Mines | Core integrity fell below 50% 1014 | -10/Mines | Core integrity fell below 20% 1023 | -10/Mines | Identified Exp. Sensor Array 1054 | -10/Mines | Lost 6 parts (1p2n1u2w) 1161 | -10/Mines | Entered Materials 1161 | -9/Materials | Evolved 2 slots: Weapon x2 1371 | -9/Materials | Core integrity fell below 50% 1411 | -9/Materials | Lost 4 parts (1p1u2w) 1443 | -9/Materials | Core integrity fell below 20% 1483 | -9/Materials | Discovered new exit (range 13) 1575 | -9/Materials | Entered another Materials area 1575 | -8/Materials | Evolved 2 slots: Utility x1, Weapon x1 1765 | -8/Materials | System corruption reached 10% 1772 | -8/Materials | Core integrity fell below 50% 1777 | -8/Materials | Core integrity fell below 20% 1783 | -8/Materials | Destroyed by G-47 Trooper with Particle Gun Last Messages --------------- U-05 Engineer lays Concrete. Acquired 33 matter. R-06 Scavenger collects Wheel. K-01 Serf collects debris. U-05 Engineer lays Concrete. K-01 Serf collects debris. Acquired Flight Unit. U-05 Engineer lays Concrete. Flight Unit destroyed. K-01 Serf collects debris. U-05 Engineer lays Concrete. System corrupted: Utility Shielding rejected. R-06 Scavenger inserts Corrupted Wheel into recycling unit. R-06 Scavenger collects Flight Unit. U-05 Engineer lays Concrete. K-01 Serf collects debris. U-05 Engineer lays Concrete. Acquired 9 matter. K-01 Serf destroyed. Map ----- +----------------------------------------------------+ | | | | | | | | | ?????????????????????????????????????????????????? | | ?????????????????????????????????????????????????? | | ?????????????????????????????????????????????????? | | ?????????????????????????????????????????????????? | | ?????????????????????????????????????????????????? | | ?????????????????????????????????????????????????? | | ?????????????????????????????????????????????????? | | ?????????????????????????????????????????????????? | | ?????????????????????????????????????????????????? | | ?????????????????????????????????????????????????? | | ???????????????????????????????????????????#####?? | | ????????????????????????????????????######## #?? | | ?????????????? ???????????????????# # #?? | | ????????????? ??????????????????# # #?? | | ???????????? ?????????????????# + #?? | | ???????????? ?????????????????# # | | ???????????? ????????????????# # | | ???????????# ############+#### # | | ???????????# ! ##+############ | | ???????????# |%=%= ########???? | | ???????????+ ^^^ * """ / | | ???????????# ^ @k "Y" ########???? | | ???????????# r ##?????????? | | ???????????# ####+##?????????? | | ?????????? | # #????? | | ?????????? ## #????? | | ?????????? ! ## """ #????? | | ?????????? ## """ #????? | | ?????????? gg kk ## " """ #????? | | ??????????# ## u u ## T ?????? | | ???????????????## ## " ?????? | | ????????????????# g ss ## ?????? | | ????????????????# %* ######+#####????? | | ????????????????# [! ????????? | | ????????????????# [ ????????? | | ????????????????# [ =%! *% ????????? | | ????????????????################+##### ?????????? | | ???????????????????????????????? ?????? ?????????? | | ?????????????????????????????????????????????????? | | ?????????????????????????????????????????????????? | | ?????????????????????????????????????????????????? | | ?????????????????????????????????????????????????? | | ?????????????????????????????????????????????????? | | ?????????????????????????????????????????????????? | | ?????????????????????????????????????????????????? | | ?????????????????????????????????????????????????? | +----------------------------------------------------+ Best States ------------- Heat Dissipation 31 Energy Generation 14 Energy Capacity 365 Matter Stores 300 Matter Capacity 300 Sight Range 16 Robot Scan Range 20 Terrain Scan Density 10 Utility Shielding 33 Evasion (%) 62 Recoil Reduction 2 Offensive Hacking 10 Item Schematics ----------------- None Robot Schematics ------------------ None Fabricated ------------ Nothing Alien Tech Used ----------------- None Achievements -------------- Oops System Compromised Challenges ------------ None Game ------ Seed SurgeLinearCharger Manual? 0 Play Time 00:14:59 Cumulative 2.0 hours Start 2024.04.05 @ 20:23:47 End 2024.04.05 @ 20:38:42 Sessions 1 Manual Loads 0 Difficulty Rogue Special Mode None Game No. 8 Rogue 8 Adventurer 0 Explorer 0 Win Type - Total 0 Types 0/0/0/0/0/0/0/0/0 Lore% 1 Gallery% 7 Achievement% 8 Wizard Run 0 Options --------- Layout 1 ASCII 0 Keyboard 0 Movement Arrows Keybinds 0 Fullscreen 1 Font 24/Smallcaps Map View 50x35 Zoom Use 0% Tactical HUD 0 Map Filters NONE Filters NONE Steam 0 RUN: d2481e72-2626-4c69-a57f-f77c4045e005